bitfinex/quotes_SOLUSD_20251128
["timestamp","ask_amount","ask_price","bid_price","bid_amount"]
[1764338503226,0.71,142.5,142.44,6.15434265]
[1764338503227,9.98434265,142.5,142.44,6.15434265]
[1764338503425,6.86434265,142.5,142.44,6.15434265]
[1764338503628,6.15434265,142.47,142.42,8.80994492]
[1764338504020,6.86434265,142.47,142.43,7.02099276]
[1764338504223,0.71,142.46,142.43,7.02099276]
[1764338505441,6.86434265,142.49,142.43,6.15434265]
[1764338505630,10.00434265,142.49,142.44,8.80994492]
[1764338505834,0.71,142.48,142.44,8.80994492]
[1764338506033,6.86434265,142.48,142.44,8.80994492]
[1764338506235,0.71,142.48,142.44,8.80994492]
[1764338506645,0.71,142.48,142.44,15.83012505]
[1764338507833,6.86434265,142.48,142.44,0.72]
[1764338508034,0.71,142.48,142.44,0.72]
[1764338508241,0.71,142.48,142.43,14.96428757]
[1764338508454,0.71,142.48,142.43,15.68428757]
[1764338508650,0.71,142.48,142.43,9.52994492]
[1764338508834,0.71,142.48,142.44,7.02049985]
[1764338509151,6.15434265,142.45,142.42,7.02122155]
[1764338509335,3.14,142.45,142.42,7.02122155]
[1764338509532,0.71,142.44,142.42,7.02122155]
[1764338510135,0.71,142.44,142.39,0.72]
[1764338510136,6.15434265,142.43,142.39,0.72]
[1764338510544,6.15434265,142.44,142.39,7.74291838]
[1764338510745,3.14,142.47,142.42,8.80994492]
[1764338510929,6.15434265,142.46,142.42,15.83128311]
[1764338511130,6.86434265,142.46,142.42,15.83128311]
[1764338511358,6.15434265,142.47,142.42,16.55128311]
[1764338511560,3.85,142.47,142.42,16.55128311]
[1764338511729,10.00434265,142.47,142.42,16.55128311]
[1764338511934,17.02337088,142.47,142.42,16.55128311]
[1764338512239,10.86902823,142.47,142.42,16.55128311]
[1764338512445,3.14,142.5,142.44,8.80994492]
[1764338512755,10.00434265,142.51,142.46,8.80994492]
[1764338512939,10.00434265,142.51,142.43,0.72]
[1764338512940,6.15434265,142.5,142.43,0.72]
[1764338513141,6.15434265,142.5,142.43,8.80994492]
[1764338513142,6.15434265,142.48,142.43,8.80994492]
[1764338513457,3.14,142.5,142.44,6.87434265]
[1764338513645,3.14,142.5,142.43,8.80994492]
[1764338513646,6.15434265,142.47,142.43,8.80994492]
[1764338513842,0.71,142.49,142.42,8.80994492]
[1764338514148,6.86434265,142.49,142.43,6.87434265]
[1764338514350,6.15434265,142.48,142.43,0.72]
[1764338514656,6.86434265,142.48,142.43,0.72]
[1764338514851,0.71,142.47,142.42,21.98572534]
[1764338515059,0.71,142.47,142.43,0.72]
[1764338515845,0.71,142.47,142.42,21.98572534]
[1764338516163,0.71,142.47,142.42,16.55138269]
[1764338516937,0.71,142.47,142.42,21.98572534]
[1764338517142,13.88251263,142.49,142.43,0.72]
[1764338517369,0.71,142.48,142.43,6.87434265]
[1764338517753,3.14,142.49,142.44,6.87434265]
[1764338518154,3.14,142.49,142.45,0.72]
[1764338518356,3.85,142.49,142.45,0.72]
[1764338518666,9.29434265,142.49,142.43,6.15434265]
[1764338518866,3.14,142.49,142.47,6.15434265]
[1764338519169,0.28432314,142.5,142.45,7.02000702]
[1764338519170,3.14,142.5,142.46,6.15434265]
[1764338519466,3.85,142.51,142.47,6.15434265]
[1764338519677,3.85,142.51,142.47,6.87434265]
[1764338520373,3.85,142.51,142.46,14.96428757]
[1764338520553,7.14866579,142.5,142.45,7.02000702]
[1764338520942,3.14,142.51,142.46,6.87434265]
[1764338521361,7.01409833,142.57,142.47,15.68428757]
[1764338521548,0.71,142.58,142.54,6.15434265]
[1764338521549,7.72368481,142.58,142.54,6.15434265]
[1764338521750,7.72292709,142.6,142.55,6.87434265]
[1764338522042,3.14,142.6,142.56,8.80994492]
[1764338522357,6.86434265,142.62,142.56,15.68428757]
[1764338522557,3.14,142.61,142.56,15.68428757]
[1764338522948,3.85,142.61,142.57,7.01409833]
[1764338523154,0.71,142.6,142.54,18.25801294]
[1764338523353,6.86434265,142.6,142.54,24.41235559]
[1764338523570,6.15434265,142.58,142.52,8.80994492]
[1764338523751,6.15434265,142.56,142.51,24.55852323]
[1764338524150,6.15434265,142.58,142.52,15.68428757]
[1764338524370,3.14,142.57,142.52,15.68428757]
[1764338524576,3.14,142.57,142.53,6.87434265]
[1764338524753,3.14,142.57,142.54,7.01557457]
[1764338525089,3.14,142.57,142.54,13.88991722]
[1764338525651,0.71,142.56,142.52,7.01610625]
[1764338525879,0.71,142.56,142.52,13.1704489]
[1764338526076,0.99432314,142.56,142.52,6.15434265]
[1764338526275,0.99432314,142.56,142.51,6.15434265]
[1764338526456,0.71,142.55,142.51,6.15434265]
[1764338526657,0.71,142.55,142.52,6.15434265]
[1764338527480,7.01406313,142.58,142.54,6.15434265]
[1764338527779,3.85,142.57,142.54,6.15434265]
[1764338527947,3.85,142.57,142.53,6.15434265]
[1764338528372,3.14,142.57,142.53,6.15434265]
[1764338528563,0.71,142.56,142.53,13.17026578]
[1764338528962,7.01406313,142.58,142.53,13.89026578]
[1764338529277,3.85,142.57,142.52,13.17077905]
[1764338529781,3.85,142.57,142.53,6.15434265]
[1764338530076,10.86310993,142.6,142.56,6.15434265]
[1764338530267,10.86310993,142.6,142.55,6.15434265]
[1764338530471,0.71,142.59,142.54,6.15434265]
[1764338530667,14.161949,142.59,142.53,6.15434265]
[1764338531068,0.71,142.58,142.53,13.17030117]
[1764338531463,0.71,142.58,142.53,6.15434265]
[1764338531666,0.28432314,142.57,142.52,6.15434265]
[1764338531866,3.14,142.56,142.51,0.72]
[1764338532076,3.85,142.56,142.51,6.87434265]
[1764338532384,0.71,142.55,142.51,0.72]
[1764338532583,0.71,142.55,142.5,16.308864]
[1764338532584,0.99432314,142.55,142.5,16.308864]
[1764338532780,0.99432314,142.55,142.5,24.04638205]
[1764338533088,0.71,142.55,142.51,6.15434265]
[1764338533783,0.71,142.55,142.52,6.87434265]
[1764338533784,3.14,142.55,142.52,6.87434265]
[1764338533971,0.28432314,142.56,142.52,0.72]
[1764338534172,3.14,142.55,142.52,6.87434265]
[1764338534381,3.14,142.56,142.53,6.15434265]
[1764338534567,0.28432314,142.58,142.54,6.15434265]
[1764338534770,3.28216157,142.58,142.53,13.17040944]
[1764338534965,3.95216157,142.58,142.53,13.89040944]
[1764338535662,0.67,142.57,142.53,13.89040944]
[1764338535858,3.95216157,142.58,142.53,13.89040944]
[1764338536387,3.14,142.58,142.55,6.15434265]
[1764338536591,3.14,142.59,142.56,7.01459034]
[1764338536891,3.14,142.6,142.56,7.01459034]
[1764338537195,3.81,142.6,142.55,6.15434265]
[1764338537376,0.67,142.59,142.55,6.15434265]
[1764338537767,0.67,142.59,142.55,6.87434265]
[1764338538289,0.67,142.59,142.55,6.15434265]
[1764338538668,0.67,142.59,142.56,7.01459034]
[1764338539610,3.14,142.6,142.57,6.87434265]
[1764338540109,3.14,142.6,142.58,6.87434265]
[1764338540493,3.14,142.6,142.58,6.15434265]
[1764338540696,3.14,142.6,142.59,7.01311452]
[1764338541207,3.81,142.6,142.59,7.01311452]
[1764338541508,9.96434265,142.6,142.54,8.80994492]
[1764338541814,0.67,142.59,142.54,14.96428757]
[1764338542114,0.67,142.59,142.55,6.15434265]
[1764338542411,0.95432314,142.59,142.53,23.32477758]
[1764338542704,0.67,142.59,142.55,6.15434265]
[1764338542909,3.79,142.59,142.55,6.15434265]
[1764338543110,3.79,142.59,142.55,6.87434265]
[1764338543414,6.15434265,142.57,142.53,7.01591358]
[1764338543600,0.28432314,142.56,142.51,13.17139408]
[1764338543800,3.12,142.55,142.51,13.17139408]
[1764338544208,3.79,142.55,142.51,13.17139408]
[1764338544719,0.67,142.54,142.51,7.01705143]
[1764338545791,0.67,142.54,142.5,24.56017312]
[1764338546302,0.67,142.54,142.5,31.43451577]
[1764338546488,0.28432314,142.55,142.51,6.87434265]
[1764338546689,4.07432314,142.55,142.51,6.87434265]
[1764338546917,4.07432314,142.55,142.52,7.01655907]
[1764338547218,0.67,142.54,142.52,7.01655907]
[1764338547731,0.67,142.54,142.51,7.01696367]
[1764338549106,0.67,142.54,142.5,24.56017312]
[1764338549488,0.67,142.54,142.5,30.71451577]
[1764338549688,0.67,142.54,142.5,24.56017312]
[1764338550213,0.67,142.54,142.5,7.01754385]
[1764338550628,0.67,142.54,142.5,13.8918865]
[1764338551415,0.67,142.54,142.5,31.43574614]
[1764338551794,3.40432314,142.55,142.51,0.72]
[1764338551996,0.67,142.54,142.5,31.43574614]
[1764338553205,0.67,142.54,142.5,7.01754385]
[1764338553393,0.67,142.54,142.5,7.73754385]
[1764338553592,0.67,142.54,142.5,7.01754385]
[1764338554025,6.82434265,142.54,142.5,7.01754385]
[1764338554334,0.67,142.54,142.5,7.01754385]
[1764338554538,0.67,142.54,142.5,7.73754385]
[1764338555426,3.12,142.53,142.5,7.01754385]
[1764338555814,0.67,142.53,142.5,7.01754385]
[1764338556015,3.79,142.53,142.5,7.01754385]
[1764338556217,14.1237699,142.55,142.5,7.73754385]
[1764338556413,3.79,142.54,142.5,13.8918865]
[1764338556734,3.79,142.54,142.5,7.73754385]
[1764338556941,9.94434265,142.54,142.5,7.73754385]
[1764338557114,0.67,142.53,142.5,7.01754385]
[1764338557315,0.67,142.53,142.5,7.73754385]
[1764338557524,0.67,142.53,142.5,7.01754385]
[1764338557940,7.10866579,142.53,142.49,7.01787738]
[1764338558534,6.82434265,142.52,142.49,7.01787738]
[1764338558836,0.67,142.52,142.49,7.01787738]
[1764338559032,13.45485199,142.53,142.49,7.01787738]
[1764338559229,0.67,142.52,142.49,7.01787738]
[1764338560322,6.15434265,142.5,142.47,7.01853174]
[1764338560525,3.12,142.49,142.47,7.01853174]
[1764338560722,3.12,142.49,142.47,7.71853174]
[1764338561715,3.12,142.49,142.47,7.01853174]
[1764338561940,3.82,142.49,142.47,7.01853174]
[1764338562136,7.13866579,142.48,142.45,7.01965644]
[1764338562422,6.15434265,142.47,142.43,7.02067977]
[1764338562622,10.228594,142.47,142.43,7.02067977]
[1764338562822,0.7,142.46,142.43,7.02067977]
[1764338563434,3.12,142.45,142.42,7.02132288]
[1764338563835,3.12,142.45,142.43,10.228594]
[1764338564235,3.12,142.45,142.43,0.7]
[1764338564821,3.12,142.45,142.41,25.27626478]
[1764338565027,3.12,142.45,142.41,34.80485878]
[1764338565736,3.12,142.45,142.42,0.7]
[1764338565937,3.12,142.45,142.43,7.02099276]
[1764338567029,3.12,142.45,142.44,9.528594]
[1764338567235,3.12,142.45,142.42,10.228594]
[1764338567749,0.7,142.44,142.41,7.02197879]
[1764338568056,3.82,142.45,142.41,17.25057279]
[1764338568354,0.7,142.44,142.41,7.02197879]
[1764338568528,0.98432314,142.44,142.4,7.02246088]
[1764338569225,8.00506416,142.44,142.4,17.25105488]
[1764338569841,0.7,142.43,142.4,7.02246088]
[1764338570162,8.00506416,142.44,142.4,17.25105488]
[1764338570362,0.98432314,142.44,142.4,17.25105488]
[1764338571266,8.00485113,142.44,142.4,17.25105488]
[1764338571451,3.12,142.43,142.4,17.25105488]
[1764338572964,7.30483052,142.44,142.4,16.55105488]
[1764338573145,3.12,142.44,142.42,9.528594]
[1764338573344,3.12,142.44,142.42,10.228594]
[1764338573954,0.7,142.43,142.39,17.25133303]
[1764338574174,3.82,142.44,142.39,17.25133303]
[1764338574471,3.82,142.44,142.4,0.7]
[1764338575044,10.84050271,142.44,142.4,7.72226296]
[1764338575239,10.84050271,142.44,142.4,17.25085696]
[1764338575455,0.7,142.43,142.4,17.25085696]
[1764338575658,0.7,142.43,142.4,7.72226296]
[1764338576146,10.14050271,142.44,142.4,7.72226296]
[1764338576340,10.14050271,142.44,142.41,10.228594]
[1764338576676,3.12,142.44,142.41,10.228594]
[1764338576896,3.12,142.44,142.41,0.7]
[1764338577058,3.12,142.43,142.41,0.7]
[1764338577478,10.228594,142.45,142.41,0.7]
[1764338577763,3.12,142.44,142.41,0.7]
[1764338577979,10.14052129,142.44,142.41,7.72188657]
[1764338578186,3.82,142.44,142.41,7.02188657]
[1764338578488,3.82,142.44,142.4,17.25092534]
[1764338578690,10.84069565,142.44,142.4,17.25092534]
[1764338579091,10.84069565,142.44,142.41,0.7]
[1764338579797,3.82,142.44,142.41,0.7]
[1764338579999,10.84052383,142.44,142.41,0.7]
[1764338580170,10.84052383,142.44,142.4,17.25092534]
[1764338580371,10.84052383,142.44,142.41,0.7]
[1764338580607,3.12,142.43,142.41,0.7]
[1764338580787,7.72052383,142.44,142.41,0.7]
[1764338580986,3.12,142.43,142.41,0.7]
[1764338581380,41.16247041,142.46,142.41,17.25021047]
[1764338581688,3.12,142.45,142.42,9.528594]
[1764338581892,3.12,142.45,142.42,10.228594]
[1764338582394,3.12,142.45,142.42,0.7]
[1764338582596,10.14013732,142.45,142.42,0.7]
[1764338582972,23.61281252,142.46,142.42,7.72123863]
[1764338583161,3.12,142.45,142.42,7.72123863]
[1764338583366,3.12,142.45,142.43,0.7]
[1764338583597,0.7,142.44,142.42,7.02123863]
[1764338583780,3.82,142.45,142.42,7.02123863]
[1764338583967,3.82,142.45,142.41,7.02197879]
[1764338584168,3.82,142.45,142.42,0.7]
[1764338584484,3.12,142.45,142.42,0.7]
[1764338584670,3.12,142.45,142.42,4.29185439]
[1764338584881,3.12,142.45,142.42,0.7]
[1764338585484,3.12,142.45,142.42,7.72135341]
[1764338585674,3.82,142.45,142.42,7.72135341]
[1764338586073,3.12,142.45,142.42,7.72135341]
[1764338588996,0.7,142.44,142.42,7.02135341]
[1764338589292,3.59185439,142.43,142.4,7.02202565]
[1764338589594,3.12,142.42,142.4,7.02202565]
[1764338590096,3.12,142.42,142.39,0.7]
[1764338590294,3.12,142.42,142.39,7.72294597]
[1764338590671,0.96432314,142.41,142.38,0.1]
[1764338590887,10.89914262,142.39,142.38,0.1]
[1764338591195,6.99617753,142.39,142.38,0.1]
[1764338591382,14.69914262,142.39,142.38,0.1]
[1764338591692,3.12,142.39,142.38,7.79345341]
[1764338592110,19.90071839,142.42,142.38,7.79345341]
[1764338592317,3.12,142.41,142.39,0.67]
[1764338592703,4.55617753,142.43,142.39,0.67]
[1764338593003,3.12,142.42,142.39,7.69274819]
[1764338593411,3.12,142.42,142.39,0.67]
[1764338593598,3.12,142.42,142.4,0.67]
[1764338595095,3.12,142.42,142.4,7.6924271]
[1764338595404,7.02055898,142.44,142.4,7.6924271]
[1764338595586,3.12,142.43,142.4,7.6924271]
[1764338595791,3.12,142.43,142.41,0.66]
[1764338596995,3.12,142.43,142.41,7.6817499]
[1764338597189,0.28432314,142.45,142.41,7.6817499]
[1764338597393,3.59185439,142.46,142.42,0.66]
[1764338597394,3.12,142.44,142.42,0.66]
[1764338597609,3.12,142.44,142.42,4.25185439]
[1764338597819,3.12,142.44,142.42,0.66]
[1764338598015,3.12,142.44,142.41,28.16855127]
[1764338598213,4.31185439,142.54,142.44,8.80994492]
[1764338598514,4.31185439,142.54,142.49,3.59185439]
[1764338598515,3.12,142.54,142.49,3.59185439]
[1764338598718,6.71185439,142.54,142.48,3.59185439]
[1764338598893,6.71185439,142.54,142.47,8.80994492]
[1764338598894,3.59185439,142.53,142.47,12.40179931]
[1764338599094,3.59185439,142.53,142.48,7.01852891]
[1764338599294,0.72,142.53,142.48,10.6103833]
[1764338599514,3.59185439,142.5,142.45,7.02000702]
[1764338599702,6.71185439,142.49,142.45,7.02000702]
[1764338599999,3.12,142.49,142.45,7.02000702]
[1764338600602,3.12,142.49,142.45,7.68000702]
[1764338601096,3.12,142.49,142.46,4.25185439]
[1764338601308,3.12,142.49,142.48,3.59185439]
[1764338601912,3.12,142.49,142.48,4.25185439]
[1764338602134,7.01563932,142.54,142.48,4.25185439]
[1764338602421,7.01563932,142.54,142.47,8.80994492]
[1764338602422,10.13563932,142.54,142.51,3.59185439]
[1764338602635,10.13563932,142.54,142.51,3.45185439]
[1764338602925,10.85563932,142.54,142.51,3.59185439]
[1764338603804,10.85563932,142.54,142.5,7.01725221]
[1764338604005,10.85563932,142.54,142.51,3.59185439]
[1764338604226,7.73470867,142.56,142.53,3.59185439]
[1764338604529,7.29903181,142.56,142.55,3.59185439]
[1764338604697,7.73370332,142.58,142.55,3.59185439]
[1764338604897,24.04256732,142.58,142.57,3.59185439]
[1764338605097,27.16256732,142.58,142.57,3.59185439]
[1764338605532,27.44689046,142.58,142.57,3.59185439]
[1764338606027,27.30472889,142.58,142.57,3.59185439]
[1764338606321,27.44689046,142.58,142.57,3.59185439]
[1764338606524,27.44689046,142.58,142.56,3.59185439]
[1764338606824,3.84,142.57,142.56,3.59185439]
[1764338607418,3.84,142.57,142.54,10.60702683]
[1764338608006,3.84,142.57,142.54,7.01517244]
[1764338608223,16.59318714,142.58,142.55,11.26692178]
[1764338608414,3.12,142.57,142.55,10.60692178]
[1764338609112,3.12,142.57,142.55,7.01506739]
[1764338609313,3.12,142.57,142.54,3.59185439]
[1764338609314,0.28432314,142.54,142.51,7.01678337]
[1764338609633,3.12,142.53,142.51,10.60863776]
[1764338609831,3.12,142.53,142.52,3.59185439]
[1764338610019,3.12,142.53,142.51,7.67678337]
[1764338610218,3.12,142.53,142.52,3.59185439]
[1764338610423,3.12,142.53,142.5,10.60924481]
[1764338610815,3.12,142.53,142.51,4.25185439]
[1764338611713,3.12,142.54,142.52,4.25185439]
[1764338611929,3.12,142.55,142.53,3.59185439]
[1764338612128,3.12,142.55,142.54,3.59185439]
[1764338612327,3.12,142.55,142.54,11.26742896]
[1764338613445,0.72,142.58,142.54,28.80636539]
[1764338613446,3.12,142.58,142.54,28.80636539]
[1764338613744,3.12,142.58,142.56,3.59185439]
[1764338614038,0.72,142.62,142.57,3.59185439]
[1764338614212,3.12,142.59,142.56,3.59185439]
[1764338614427,3.12,142.59,142.56,10.60597527]
[1764338614631,3.12,142.59,142.56,17.1832673]
[1764338614850,0.72,142.58,142.53,10.16914642]
[1764338615029,10.51346956,142.58,142.53,10.16914642]
[1764338615556,0.72,142.57,142.53,17.18521321]
[1764338616133,0.28432314,142.58,142.54,0.66]
[1764338616333,1.00432314,142.58,142.54,10.16914642]
[1764338616535,17.52713119,142.58,142.53,17.18502371]
[1764338616848,0.72,142.57,142.53,17.18502371]
[1764338617047,0.28432314,142.55,142.5,0.66]
[1764338617347,3.12,142.54,142.49,16.52718277]
[1764338617538,3.84,142.54,142.49,17.18718277]
[1764338617739,3.84,142.54,142.5,0.66]
[1764338618355,10.85559394,142.54,142.5,7.67726829]
[1764338619057,10.85559394,142.54,142.5,0.66]
[1764338619352,10.51346956,142.53,142.48,9.50914642]
[1764338619853,0.72,142.52,142.48,10.16914642]
[1764338620077,10.22914642,142.55,142.49,10.16914642]
[1764338620358,3.40432314,142.54,142.49,10.16914642]
[1764338620525,3.84,142.54,142.5,7.01754385]
[1764338620731,3.84,142.54,142.5,7.67754385]
[1764338621036,10.13584678,142.54,142.5,16.52669027]
[1764338621257,3.12,142.53,142.51,10.16914642]
[1764338621440,0.68,142.55,142.51,10.16914642]
[1764338621639,3.12,142.55,142.52,0.66]
[1764338621850,3.12,142.55,142.52,10.16914642]
[1764338622442,16.308864,142.57,142.53,17.18484865]
[1764338622771,3.12,142.56,142.53,17.18484865]
[1764338622965,7.01402216,142.58,142.54,0.66]
[1764338623153,3.12,142.56,142.54,0.66]
[1764338624161,3.12,142.56,142.53,7.01570223]
[1764338624363,3.12,142.56,142.53,7.67570223]
[1764338625680,3.12,142.56,142.54,0.66]
[1764338627546,3.12,142.56,142.53,7.01570223]
[1764338627870,3.12,142.56,142.54,0.66]
[1764338630177,3.12,142.56,142.53,7.01570223]
[1764338630358,3.12,142.56,142.53,7.67570223]
[1764338630678,3.12,142.56,142.53,13.16338159]
[1764338630879,3.12,142.56,142.53,13.82338159]
[1764338631476,3.12,142.56,142.53,13.16338159]
[1764338631679,3.12,142.56,142.53,13.82338159]
[1764338631974,3.12,142.56,142.54,0.66]
[1764338632349,0.28432314,142.59,142.55,6.14767936]
[1764338632656,3.12,142.57,142.56,6.14767936]
[1764338633163,0.68,142.63,142.56,6.80767936]
[1764338633476,3.12,142.62,142.59,6.14767936]
[1764338633848,3.12,142.62,142.6,7.67242062]
[1764338634055,3.12,142.63,142.61,6.14767936]
[1764338634467,3.12,142.63,142.61,6.80767936]
[1764338634850,3.12,142.63,142.6,7.01242062]
[1764338635054,3.12,142.63,142.62,6.80767936]
[1764338635256,3.12,142.63,142.62,6.14767936]
[1764338635565,3.12,142.63,142.61,6.80767936]
[1764338636278,3.12,142.63,142.58,0.66]
[1764338636461,6.82767936,142.62,142.57,14.95762428]
[1764338636668,0.68,142.62,142.57,11.10366374]
[1764338636970,12.42488926,142.63,142.58,2.29371882]
[1764338637169,12.42488926,142.63,142.58,2.95371882]
[1764338637170,0.68,142.62,142.58,2.95371882]
[1764338637986,0.68,142.62,142.56,0.66]
[1764338637987,0.96432314,142.62,142.56,0.66]
[1764338638296,7.69213098,142.61,142.57,2.29371882]
[1764338638491,7.69213098,142.61,142.58,2.29371882]
[1764338638668,0.68,142.61,142.58,6.14315162]
[1764338639489,0.28432314,142.62,142.58,6.14315162]
[1764338639694,7.97603735,142.62,142.58,6.80315162]
[1764338639995,3.12,142.61,142.58,6.80315162]
[1764338640292,3.8,142.61,142.58,7.67344449]
[1764338640586,3.8,142.61,142.58,13.81659611]
[1764338641491,3.8,142.61,142.58,7.67344449]
[1764338641693,3.12,142.61,142.58,13.81659611]
[1764338642072,3.12,142.61,142.56,18.19647586]
[1764338642073,0.68,142.6,142.56,18.19647586]
[1764338642381,3.12,142.61,142.57,6.80315162]
[1764338642575,3.8,142.61,142.57,6.80315162]
[1764338643275,3.8,142.61,142.58,7.01360639]
[1764338644666,0.28432314,142.58,142.53,18.19916673]
[1764338644872,3.12,142.57,142.53,24.34231835]
[1764338645076,3.12,142.57,142.54,0.66]
[1764338645272,3.12,142.57,142.54,7.67557457]
[1764338645499,10.4182699,142.58,142.54,13.81872619]
[1764338645869,0.68,142.57,142.54,7.01557457]
[1764338646392,10.4182699,142.58,142.54,7.67557457]
[1764338646594,0.68,142.57,142.54,7.01557457]
[1764338646895,10.4182699,142.58,142.54,7.01557457]
[1764338646896,3.12,142.58,142.55,6.80315162]
[1764338647096,3.12,142.58,142.55,0.66]
[1764338647464,7.01323368,142.59,142.55,6.80315162]
[1764338647694,3.12,142.58,142.56,0.66]
[1764338647897,3.12,142.58,142.56,7.01459034]
[1764338648600,3.12,142.58,142.55,0.66]
[1764338648891,3.8,142.58,142.55,0.66]
[1764338649998,10.81362424,142.58,142.55,0.66]
[1764338650498,0.68,142.57,142.52,6.14315162]
[1764338650675,7.10747476,142.57,142.51,22.45201562]
[1764338650865,3.12,142.56,142.52,6.82315162]
[1764338651290,3.12,142.56,142.53,0.68]
[1764338651678,3.12,142.56,142.54,6.14315162]
[1764338652085,3.12,142.56,142.54,13.83848468]
[1764338652286,3.12,142.57,142.54,6.14315162]
[1764338652592,3.12,142.57,142.54,7.69554483]
[1764338652798,3.12,142.57,142.54,0.68]
[1764338653179,3.12,142.57,142.51,7.69686702]
[1764338653180,6.84315162,142.56,142.51,7.69686702]
[1764338653381,6.84315162,142.56,142.51,13.84001864]
[1764338653586,0.7,142.55,142.51,13.84001864]
[1764338653782,6.14315162,142.56,142.52,0.68]
[1764338653996,6.14315162,142.56,142.52,13.83949665]
[1764338653997,0.7,142.56,142.52,13.83949665]
[1764338654400,3.12,142.55,142.52,13.83949665]
[1764338654580,3.12,142.55,142.52,0.68]
[1764338654776,23.15201562,142.59,142.54,6.14315162]
[1764338654982,3.12,142.58,142.54,6.14315162]
[1764338655207,23.15201562,142.59,142.55,0.72]
[1764338655403,3.81,142.58,142.55,0.72]
[1764338655714,3.12,142.58,142.54,6.86315162]
[1764338655902,3.12,142.58,142.55,0.72]
[1764338656407,7.70352336,142.59,142.55,0.72]
[1764338656607,3.12,142.58,142.55,0.72]
[1764338657882,3.12,142.58,142.55,7.7350473]
[1764338658498,7.70240118,142.61,142.56,0.72]
[1764338658684,6.10419668,142.6,142.56,0.72]
[1764338658998,3.12,142.6,142.56,0.72]
[1764338659311,3.12,142.6,142.57,2.29419668]
[1764338659484,3.12,142.6,142.57,7.01409833]
[1764338659684,3.12,142.6,142.57,0.72]
[1764338659901,10.13280935,142.6,142.57,0.72]
[1764338660095,6.10419668,142.6,142.56,0.72]
[1764338660298,3.12,142.6,142.56,0.72]
[1764338660508,3.81,142.6,142.56,0.72]
[1764338661509,0.69,142.59,142.56,7.01416633]
[1764338662425,0.69,142.59,142.56,7.73416633]
[1764338663125,12.42683908,142.6,142.56,7.73416633]
[1764338663298,2.29419668,142.59,142.55,7.01508242]
[1764338663482,2.29419668,142.58,142.53,9.52994492]
[1764338663682,2.29419668,142.57,142.53,9.52994492]
[1764338663920,2.98419668,142.62,142.56,11.1041416]
[1764338664105,3.12,142.61,142.57,2.29419668]
[1764338664298,3.81,142.61,142.58,0.72]
[1764338665104,3.12,142.61,142.58,7.73359717]
[1764338665496,0.69,142.63,142.59,3.01419668]
[1764338665696,3.12,142.62,142.59,3.01419668]
[1764338665913,3.12,142.62,142.6,0.72]
[1764338666305,3.12,142.62,142.59,2.29419668]
[1764338666610,3.12,142.62,142.59,3.01419668]
[1764338666800,7.70117562,142.63,142.59,3.01419668]
[1764338666996,3.12,142.62,142.6,0.72]
[1764338667315,3.12,142.62,142.59,10.02693239]
[1764338668714,3.12,142.62,142.6,0.72]
[1764338668915,7.01117562,142.63,142.6,0.72]
[1764338669118,3.12,142.62,142.59,9.30693239]
[1764338669316,3.12,142.62,142.6,0.72]
[1764338669504,7.01074821,142.64,142.6,0.72]
[1764338669700,3.12,142.62,142.6,0.72]
[1764338670916,3.12,142.62,142.6,7.73233926]
[1764338671121,3.12,142.62,142.61,0.72]
[1764338671421,0.69,142.67,142.61,11.8241416]
[1764338671621,7.98367639,142.67,142.62,2.29419668]
[1764338671798,3.12,142.66,142.63,2.29419668]
[1764338671994,3.81,142.66,142.63,3.01419668]
[1764338672316,3.81,142.66,142.62,3.01419668]
[1764338672519,0.69,142.65,142.61,11.8241416]
[1764338672713,3.81,142.66,142.61,11.8241416]
[1764338672909,6.10419668,142.66,142.62,0.72]